lending/lending_fUSD_20251020
["ID","MTS","AMOUNT","RATE_DAILY","PERIOD"]
[391902572,1760968626222,201.12765535,0.00034394,30]
[391902573,1760968626257,500.0,0.00034394,30]
[391902574,1760968626868,500.0,0.00034394,30]
[391902575,1760968627523,500.0,0.00034394,30]
[391902585,1760968629318,478.53639984,0.00034394,30]
[391902589,1760968630365,639.02646327,0.00034394,30]
[391902590,1760968633638,594.81905997,0.00034394,30]
[391902591,1760968635192,181.05809549,0.00034394,30]
[391902592,1760968636849,500.0,0.00034394,30]
[391902595,1760968637651,500.0,0.00034394,30]
[391902596,1760968638309,500.0,0.00034394,30]
[391902599,1760968653892,250.08295686,0.00034394,30]
[391902605,1760968680176,500.0,0.00034394,60]
[391902606,1760968680451,500.0,0.00034394,60]
[391902607,1760968680735,500.0,0.00034394,60]
[391902729,1760969210859,150.0,0.00027442,120]
[391902764,1760969344111,259.3272583,0.00034334,60]
[391902776,1760969431912,-315.24883296,0.00014999,2]
[391902777,1760969431922,-500.0,0.00014999,2]
[391902778,1760969431931,-500.0,0.00014999,2]
[391902779,1760969431940,-500.0,0.00014999,2]
[391902780,1760969431949,-500.0,0.00014999,2]
[391902781,1760969431960,-500.0,0.00014999,2]
[391902782,1760969431969,-374.80600158,0.00014999,2]
[391902783,1760969431994,-125.19399842,0.00014999,2]
[391902784,1760969432004,-500.0,0.00014999,2]
[391902785,1760969432013,-540.80600158,0.00014999,2]
[391902786,1760969432037,-40.41913298,0.00014999,2]
[391902787,1760969432046,-176.94942203,0.00014999,2]
[391902788,1760969432056,-500.0,0.00014999,2]
[391902789,1760969432066,-500.0,0.00014999,2]
[391902790,1760969432077,-557.0,0.00014999,2]
[391902791,1760969432087,-340.79,0.00015316,2]
[391902792,1760969432097,-340.79,0.00016122,2]
[391902793,1760969432106,-500.0,0.00016499,2]
[391902794,1760969432117,-340.79,0.00016928,2]
[391902795,1760969432127,-250.0,0.00017,2]
[391902796,1760969432138,-500.0,0.000172,2]
[391902797,1760969432148,-500.0,0.000172,2]
[391902798,1760969432159,-161.38253079,0.000172,2]
[391902799,1760969432170,-500.33128654,0.000172,2]
[391902800,1760969432182,-500.0,0.000177,2]
[391902801,1760969432193,-421.87768396,0.000177,2]
[391902802,1760969432204,-340.79,0.00017735,2]
[391902803,1760969432214,-500.0,0.00017748,2]
[391902804,1760969432223,-1258.89,0.00017748,2]
[391902806,1760969432232,-500.0,0.00018248,2]
[391902808,1760969432241,-340.79,0.00018541,2]
[391902809,1760969432251,-475.93135235,0.00019251,2]
[391902810,1760969432261,-1591.26859135,0.0001928,2]
[391902811,1760969432282,-344.68831887,0.0001928,2]
[391902812,1760969432293,-151.0,0.00019335,2]
[391902813,1760969432303,-151.0,0.00019335,2]
[391902814,1760969432313,-207.4364816,0.00019335,2]
[391902815,1760969432322,-151.0,0.00019335,2]
[391902816,1760969432332,-151.0,0.00019335,2]
[391902817,1760969432341,-151.0,0.00019335,2]
[391902818,1760969432351,-151.0,0.00019335,2]
[391902819,1760969432362,-151.0,0.00019335,2]
[391902820,1760969432373,-204.67913519,0.00019335,2]
[391902821,1760969432383,-340.79,0.00019347,2]
[391902822,1760969432393,-299.99,0.00020145,7]
[391902823,1760969432404,-9999.99,0.00020145,2]
[391902824,1760969432414,-340.79,0.00020153,2]
[391902825,1760969432423,-340.79,0.00020959,2]
[391902826,1760969432433,-340.79,0.00021765,2]
[391902827,1760969432444,-340.79,0.00022571,2]
[391902828,1760969432454,-340.79,0.00023377,2]
[391902829,1760969432464,-340.79,0.00024183,2]
[391902830,1760969432474,-277.35679052,0.00024321,2]
[391902831,1760969432485,-290.99105113,0.0002444,2]
[391902832,1760969432496,-340.79,0.0002499,2]
[391902833,1760969432506,-434.43764112,0.0002569,2]
[391902834,1760969432516,-340.79,0.00025796,2]
[391902835,1760969432526,-259.18399985,0.00026485,2]
[391902836,1760969432536,-340.79,0.00026602,2]
[391902837,1760969432547,-500.0,0.00027195,2]
[391902838,1760969432556,-200.0,0.00027365,2]
[391902839,1760969432568,-559.92,0.00027386,2]
[391902840,1760969432578,-340.79,0.00027408,2]
[391902841,1760969432589,-150.0,0.00027442,2]
[391902842,1760969432598,-1626.51,0.00027474,2]
[391902843,1760969432609,-1267.39,0.00027795,2]
[391902844,1760969432618,-666.0,0.00027837,3]
[391902845,1760969432628,-150.0,0.00028021,2]
[391902846,1760969432637,-470.268,0.00028151,18]
[391902847,1760969432647,-340.79,0.00028214,2]
[391902848,1760969432656,-5000.0,0.00028555,2]
[391902849,1760969432665,-169.22,0.00028692,2]
[391902850,1760969432675,-340.79,0.0002902,2]
[391902851,1760969432684,-500.0,0.0002905,5]
[391902852,1760969432694,-5169.86725027,0.00029153,2]
[391902853,1760969432703,-1900.0,0.0002942,7]
[391902854,1760969432713,-500.0,0.00029474,7]
[391902855,1760969432723,-500.0,0.0002964,7]
[391902856,1760969432732,-1300.0,0.00029664,7]
[391902857,1760969432741,-1090.73147478,0.00029799,7]
[391902858,1760969432758,-209.26852522,0.00029799,7]
[391902859,1760969432767,-340.79,0.00029826,2]
[391902860,1760969432777,-500.0,0.00029831,7]
[391902861,1760969432786,-500.0,0.00029857,7]
[391902862,1760969432796,-500.0,0.00029908,7]
[391902863,1760969432805,-500.0,0.00029954,7]
[391902864,1760969432816,-500.0,0.00029967,7]
[391902865,1760969432826,-206.71367316,0.0003,14]
[391902866,1760969432836,-500.0,0.00030005,7]
[391902867,1760969432846,-1900.0,0.00030061,7]
[391902868,1760969432856,-700.0,0.00030074,7]
[391902869,1760969432866,-600.0,0.00030083,7]
[391902870,1760969432876,-600.0,0.00030162,7]
[391902871,1760969432886,-600.0,0.00030281,7]
[391902872,1760969432896,-700.0,0.00030321,7]
[391902873,1760969432907,-700.0,0.00030352,7]
[391902874,1760969432918,-502.95694503,0.00030371,5]
[391902875,1760969432928,-502.60880048,0.00030371,5]
[391902876,1760969432938,-160.05545038,0.00030392,5]
[391902877,1760969432948,-500.0,0.00030392,5]
[391902878,1760969432958,-209.69026129,0.00030392,5]
[391902879,1760969432967,-500.0,0.00030392,5]
[391902880,1760969432977,-500.0,0.00030392,5]
[391902881,1760969432986,-500.0,0.00030392,5]
[391902882,1760969432996,-500.0,0.00030392,5]
[391902883,1760969433006,-500.4424632,0.00030392,5]
[391902884,1760969433016,-500.0,0.00030392,5]
[391902885,1760969433027,-500.0,0.00030392,5]
[391902886,1760969433037,-500.0,0.00030392,5]
[391902887,1760969433047,-426.40327844,0.00030392,5]
[391902888,1760969433058,-281.05903844,0.00030392,5]
[391902889,1760969433069,-500.45598947,0.00030392,5]
[391902890,1760969433079,-500.57966819,0.00030392,5]
[391902891,1760969433088,-1900.0,0.00030392,7]
[391902892,1760969433098,-500.0,0.00030402,7]
[391902893,1760969433108,-700.0,0.00030409,7]
[391902894,1760969433118,-1300.0,0.00030425,7]
[391902895,1760969433128,-500.0,0.00030487,7]
[391902896,1760969433138,-172.63171992,0.00030522,7]
[391902897,1760969433148,-700.0,0.0003056,7]
[391902898,1760969433157,-700.0,0.00030582,7]
[391902899,1760969433167,-1300.0,0.00030591,7]
[391902900,1760969433177,-198.32,0.00030624,2]
[391902901,1760969433186,-340.79,0.00030632,2]
[391902902,1760969433196,-500.0,0.00030657,7]
[391902903,1760969433206,-1900.0,0.00030662,7]
[391902904,1760969433218,-500.0,0.0003076,7]
[391902905,1760969433227,-500.0,0.00030761,7]
[391902906,1760969433237,-381.89836586,0.0003078,7]
[391902915,1760969438586,-500.0,0.0002915,2]
[391902916,1760969438599,-244.53193848,0.0002915,2]
[391902917,1760969438617,-500.0,0.0002915,2]
[391902918,1760969438628,-500.0,0.0002915,2]
[391902919,1760969438652,-460.46806177,0.0002915,2]
[391902920,1760969438668,-39.53193823,0.0002915,2]
[391902921,1760969438682,-500.0,0.0002915,2]
[391902922,1760969438708,-500.0,0.0002915,2]
[391902923,1760969438720,-500.0,0.0002915,2]
[391902924,1760969438736,-447.52734106,0.0002915,2]
[391902925,1760969438754,-500.0,0.0002915,2]
[391902926,1760969438766,-162.09066484,0.0002915,2]
[391902927,1760969438904,-337.90933516,0.0002915,2]
[391902928,1760969438921,-500.0,0.0002915,2]
[391902929,1760969438947,-500.0,0.0002915,2]
[391902930,1760969438974,-500.0,0.00030392,5]
[391902931,1760969438993,-318.10163414,0.0003078,7]
[391902932,1760969439019,-600.0,0.00030899,7]
[391902933,1760969439036,-1300.0,0.00030907,7]
[391902934,1760969439058,-1000.0,0.0003094,5]
[391902935,1760969439081,-677.1361685,0.0003094,5]
[391902936,1760969439113,-89.12667004,0.0003094,5]
[391902937,1760969439140,-694.87332996,0.0003094,5]
[391903028,1760969442210,-305.12667004,0.0003094,5]
[391903030,1760969442235,-500.0,0.0003094,5]
[391903031,1760969442278,-368.3588656,0.0003094,5]
[391903034,1760969442342,-661.19762436,0.0003094,5]
[391903036,1760969442372,-338.80237564,0.0003094,5]
[391903039,1760969442400,-61.19762436,0.00030953,7]
[391903049,1760969442665,-538.80237564,0.00030953,7]
[391903052,1760969442716,-500.0,0.00030958,5]
[391903053,1760969442751,-160.05545442,0.00030958,2]
[391903055,1760969442834,-700.0,0.00031055,7]
[391903057,1760969442861,-700.0,0.00031105,7]
[391903060,1760969442892,-600.0,0.00031142,7]
[391903062,1760969442952,-1300.0,0.00031189,7]
[391903066,1760969442992,-1300.0,0.00031236,7]
[391903069,1760969443064,-181.74217002,0.0003125,7]
[391903077,1760969443246,-518.25782998,0.0003125,7]
[391903079,1760969443283,-500.0,0.00031308,5]
[391903081,1760969443298,-500.0,0.00031308,5]
[391903084,1760969443329,-500.0,0.00031308,5]
[391903087,1760969443357,-500.0,0.00031308,5]
[391903089,1760969443405,-500.0,0.0003131,7]
[391903091,1760969443423,-1900.0,0.00031349,7]
[391903093,1760969443440,-700.0,0.00031353,7]
[391903095,1760969443472,-700.0,0.00031414,7]
[391903098,1760969443494,-500.0,0.00031415,7]
[391903100,1760969443510,-600.0,0.00031438,7]
[391903102,1760969443534,-500.0,0.00031467,7]
[391903104,1760969443550,-1300.0,0.00031475,7]
[391903105,1760969443568,-700.0,0.00031478,7]
[391903108,1760969443593,-500.0,0.00031485,7]
[391903110,1760969443610,-500.0,0.00031488,5]
[391903112,1760969443626,-178.31324067,0.00031488,5]
[391903114,1760969443651,-1344.90413914,0.00031488,5]
[391903116,1760969443667,-700.0,0.00031507,7]
[391903118,1760969443696,-700.0,0.00031521,7]
[391903120,1760969443725,-1300.0,0.00031532,7]
[391903122,1760969443747,-1300.0,0.00031695,7]
[391903124,1760969443781,-700.0,0.00031711,7]
[391903126,1760969443798,-500.0,0.00031756,7]
[391903128,1760969443814,-1300.0,0.00031793,7]
[391903131,1760969443828,-1900.0,0.00031838,7]
[391903133,1760969443844,-500.0,0.00031856,5]
[391903135,1760969443865,-1000.0,0.00031856,5]
[391903137,1760969443880,-1300.0,0.00031873,7]
[391903139,1760969443896,-500.0,0.00031905,7]
[391903142,1760969443911,-500.0,0.00032021,7]
[391903144,1760969443930,-152.0,0.00032167,3]
[391903146,1760969443948,-1900.0,0.00032169,7]
[391903149,1760969443962,-500.0,0.00032239,7]
[391903153,1760969443983,-168.0,0.00032289,2]
[391903155,1760969443997,-1900.0,0.000323,7]
[391903157,1760969444015,-700.0,0.00032313,7]
[391903159,1760969444029,-1300.0,0.00032317,7]
[391903161,1760969444044,-168.16321589,0.00032339,7]
[391903163,1760969444059,-500.0,0.0003239,7]
[391903165,1760969444084,-959.75998998,0.00032404,5]
[391903167,1760969444101,-700.0,0.00032404,7]
[391903169,1760969444117,-700.0,0.00032414,7]
[391903171,1760969444131,-1300.0,0.00032414,7]
[391903173,1760969444145,-198.47,0.00032438,2]
[391903175,1760969444160,-600.0,0.00032471,7]
[391903177,1760969444177,-1300.0,0.00032502,7]
[391903179,1760969444196,-1300.0,0.00032516,7]
[391903182,1760969444212,-500.0,0.00032519,7]
[391903184,1760969444227,-1900.0,0.00032533,7]
[391903187,1760969444250,-168.0,0.00032547,2]
[391903189,1760969444265,-500.0,0.0003263,7]
[391903191,1760969444279,-541.17838921,0.00032673,7]
[391903193,1760969444294,-500.0,0.00032674,7]
[391903194,1760969444308,-700.0,0.00032677,7]
[391903196,1760969444322,-700.0,0.00032766,7]
[391903199,1760969444340,-1300.0,0.00032768,7]
[391903200,1760969444357,-1900.0,0.00032784,7]
[391903202,1760969444373,-1300.0,0.000328,7]
[391903204,1760969444392,-197.93898376,0.00032844,7]
[391903206,1760969444408,-1300.0,0.00032845,7]
[391903208,1760969444423,-168.0,0.00032891,2]
[391903210,1760969444436,-700.0,0.00032907,7]
[391903212,1760969444452,-168.0,0.00032987,2]
[391903214,1760969444463,-150.0,0.00032987,2]
[391903217,1760969444490,-150.0,0.00032987,2]
[391903219,1760969444507,-150.0,0.00032987,2]
[391903221,1760969444518,-150.0,0.00032987,2]
[391903223,1760969444529,-150.0,0.00032987,2]
[391903225,1760969444540,-150.0,0.00032987,2]
[391903245,1760969444756,-150.0,0.00032987,2]
[391903248,1760969444781,-150.0,0.00032987,2]
[391903250,1760969444792,-150.0,0.00032987,2]
[391903252,1760969444804,-150.0,0.00032987,2]
[391903254,1760969444815,-150.0,0.00032987,2]
[391903257,1760969444836,-150.0,0.00032987,2]
[391903259,1760969444849,-150.0,0.00032987,2]
[391903261,1760969444863,-150.0,0.00032987,2]
[391903264,1760969444874,-150.0,0.00032987,2]
[391903266,1760969444885,-150.0,0.00032987,2]
[391903268,1760969444898,-150.0,0.00032987,2]
[391903270,1760969444909,-150.0,0.00032987,2]
[391903272,1760969444921,-7254.37699224,0.00032997,2]
[391903274,1760969444933,-500.0,0.00033008,7]
[391903276,1760969444944,-150.0,0.00033042,2]
[391903278,1760969444955,-150.0,0.00033042,2]
[391903279,1760969444966,-150.0,0.00033042,2]
[391903280,1760969444979,-150.0,0.00033042,2]
[391903281,1760969444991,-150.0,0.00033042,2]
[391903282,1760969445002,-150.0,0.00033042,2]
[391903283,1760969445014,-150.0,0.00033042,2]
[391903284,1760969445026,-150.0,0.00033042,2]
[391903285,1760969445037,-150.0,0.00033042,2]
[391903286,1760969445049,-150.0,0.00033042,2]
[391903287,1760969445060,-150.0,0.00033042,2]
[391903289,1760969445071,-1300.0,0.00033051,7]
[391903290,1760969445081,-500.0,0.00033052,7]
[391903292,1760969445092,-168.0,0.00033077,2]
[391903294,1760969445102,-150.0,0.00033097,2]
[391903296,1760969445113,-200.0,0.00033097,2]
[391903299,1760969445125,-150.0,0.00033097,2]
[391903301,1760969445136,-150.0,0.00033097,2]
[391903303,1760969445147,-150.0,0.00033097,2]
[391903305,1760969445158,-200.0,0.00033097,2]
[391903309,1760969445169,-200.0,0.00033097,2]
[391903311,1760969445181,-200.0,0.00033097,2]
[391903313,1760969445192,-204.10916528,0.00033097,2]
[391903315,1760969445202,-1300.0,0.00033117,7]
[391903317,1760969445214,-7254.37699221,0.00033131,2]
[391903319,1760969445226,-222.62685251,0.00033151,2]
[391903321,1760969445237,-249.0,0.00033151,2]
[391903323,1760969445248,-150.0,0.00033151,2]
[391903325,1760969445259,-600.0,0.0003319,7]
[391903327,1760969445271,-500.0,0.00033204,7]
[391903329,1760969445282,-253.0,0.00033206,2]
[391903331,1760969445292,-700.0,0.00033214,7]
[391903333,1760969445304,-7254.37699221,0.00033265,2]
[391903336,1760969445317,-817.39700933,0.00033271,2]
[391903338,1760969445327,-7254.37699221,0.00033399,2]
[391903340,1760969445337,-700.0,0.00033409,7]
[391903342,1760969445348,-168.0,0.00033443,2]
[391903344,1760969445359,-500.0,0.00033449,7]
[391903346,1760969445373,-500.0,0.0003347,7]
[391903348,1760969445384,-2051.0,0.00033497,2]
[391903350,1760969445394,-3410.0,0.00033497,2]
[391903352,1760969445407,-1268.0,0.00033497,2]
[391903354,1760969445418,-786.0,0.00033497,2]
[391903356,1760969445430,-605.0,0.00033497,2]
[391903358,1760969445444,-1311.0,0.00033497,2]
[391903360,1760969445455,-1590.0,0.00033497,2]
[391903362,1760969445465,-572.0,0.00033497,2]
[391903364,1760969445476,-817.0,0.00033497,2]
[391903366,1760969445486,-6446.0,0.00033497,2]
[391903368,1760969445497,-6440.0,0.00033497,2]
[391903370,1760969445507,-557.0,0.00033497,2]
[391903372,1760969445517,-2591.0,0.00033497,2]
[391903374,1760969445527,-1184.0,0.00033497,2]
[391903376,1760969445537,-700.0,0.00033504,7]
[391903378,1760969445548,-7254.37699221,0.00033533,2]
[391903380,1760969445558,-1000.0,0.00033572,2]
[391903382,1760969445568,-2500.0,0.00033572,2]
[391903384,1760969445578,-7254.37699221,0.00033666,2]
[391903386,1760969445589,-1300.0,0.00033667,7]
[391903388,1760969445600,-171.14830439,0.000337,120]
[391903390,1760969445611,-162.67203957,0.000337,120]
[391903392,1760969445621,-1197.84860416,0.000337,120]
[391903394,1760969445631,-198.00753175,0.000337,120]
[391903396,1760969445642,-10174.9496206,0.000337,120]
[391903398,1760969445652,-1900.0,0.00033705,7]
[391903399,1760969445663,-500.0,0.00033742,7]
[391903400,1760969445674,-7254.37699221,0.000338,2]
[391903401,1760969445684,-1900.0,0.00033811,7]
[391903402,1760969445695,-7254.37699221,0.00033934,2]
[391903403,1760969445705,-695.95087,0.0003396,2]
[391903404,1760969445717,-168.0,0.00033982,2]
[391903405,1760969445727,-332.0,0.00034,120]
[391903406,1760969445737,-2937.14,0.00034,16]
[391903407,1760969445748,-2000.0,0.00034,34]
[391903408,1760969445758,-10142.06094179,0.00034,2]
[391903409,1760969445769,-796.0151038,0.00034017,2]
[391903410,1760969445780,-200.0,0.00034027,10]
[391903411,1760969445790,-1900.0,0.00034041,7]
[391903412,1760969445800,-700.0,0.00034044,7]
[391903414,1760969445810,-1300.0,0.00034052,7]
[391903415,1760969445821,-500.0,0.00034057,7]
[391903416,1760969445831,-1300.0,0.00034061,7]
[391903417,1760969445842,-7254.37699221,0.00034068,2]
[391903418,1760969445852,-3140.60498677,0.00034094,3]
[391903419,1760969445862,-500.0,0.00034095,7]
[391903420,1760969445872,-9421.81496031,0.00034106,3]
[391903421,1760969445882,-6281.20997354,0.00034119,3]
[391903422,1760969445893,-3140.60498677,0.00034121,3]
[391903423,1760969445904,-500.0,0.00034124,8]
[391903424,1760969445914,-9421.81496031,0.00034131,3]
[391903425,1760969445925,-500.0,0.00034131,7]
[391903426,1760969445935,-1900.0,0.00034139,7]
[391903427,1760969445946,-6281.20997354,0.00034143,3]
[391903428,1760969445957,-9421.81496031,0.00034155,3]
[391903429,1760969445968,-9421.81496031,0.00034168,3]
[391903430,1760969445980,-53390.2847751,0.00034171,3]
[391903431,1760969445992,-3140.60498677,0.00034176,3]
[391903433,1760969446003,-500.0,0.00034177,7]
[391903434,1760969446013,-500.0,0.00034177,8]
[391903435,1760969446024,-500.0,0.00034177,8]
[391903436,1760969446034,-11164.67637453,0.00034178,2]
[391903437,1760969446046,-9421.81496031,0.0003418,3]
[391903438,1760969446056,-15703.0249338,0.00034182,3]
[391903439,1760969446067,-36365.6660297,0.00034182,3]
[391903440,1760969446078,-179.34077467,0.00034186,2]
[391903441,1760969446089,-408.9267706,0.00034186,8]
[391903442,1760969446100,-506.33701392,0.00034186,8]
[391903443,1760969446110,-500.0,0.00034186,8]
[391903444,1760969446120,-199.0,0.00034186,7]
[391903445,1760969446130,-11164.67637453,0.0003419,2]
[391903446,1760969446141,-500.0,0.00034191,8]
[391903447,1760969446151,-33141.5314,0.00034192,2]
[391903449,1760969446162,-144085.9151,0.00034192,2]
[391903450,1760969446172,-1000.0,0.00034192,120]
[391903451,1760969446183,-1000.0,0.00034192,2]
[391903452,1760969446193,-5000.0,0.00034192,2]
[391903453,1760969446203,-12121.8886766,0.00034192,3]
[391903454,1760969446213,-500.0,0.00034194,7]
[391903455,1760969446224,-500.0,0.00034194,8]
[391903456,1760969446234,-500.0,0.00034194,8]
[391903457,1760969446244,-84853.2207361,0.00034199,3]
[391903458,1760969446255,-688.42629029,0.00034202,2]
[391903459,1760969446265,-7254.37699221,0.00034202,2]
[391903460,1760969446275,-11164.67637453,0.00034202,2]
[391903461,1760969446286,-1292.07292626,0.00034202,2]
[391903462,1760969446296,-1189.61984159,0.00034202,2]
[391903463,1760969446306,-269.47110542,0.00034202,2]
[391903464,1760969446317,-159.14244699,0.00034202,2]
[391903465,1760969446328,-500.0,0.00034208,8]
[391903466,1760969446339,-121218.886766,0.00034209,3]
[391903467,1760969446350,-150.17,0.00034209,2]
[391903468,1760969446361,-196.85673225,0.00034209,2]
[391903469,1760969446375,-500.0,0.00034218,8]
[391903470,1760969446385,-500.0,0.00034218,7]
[391903471,1760969446395,-500.0,0.00034218,8]
[391903472,1760969446408,-500.0,0.00034218,8]
[391903473,1760969446418,-500.0,0.00034218,8]
[391903474,1760969446428,-191616.6287404,0.00034219,2]
[391903475,1760969446440,-38089.9622356,0.00034219,2]
[391903476,1760969446450,-11465.0852956,0.00034219,2]
[391903477,1760969446461,-505.74558823,0.00034246,120]
[391903478,1760969446471,-6060.94433829,0.00034252,3]
[391903479,1760969446481,-198.46716268,0.0003426,2]
[391903480,1760969446492,-78792.2763978,0.00034262,3]
[391903481,1760969446503,-1300.0,0.00034267,7]
[391903482,1760969446514,-1300.0,0.00034269,7]
[391903483,1760969446525,-666.0,0.0003427,10]
[391903484,1760969446535,-500.0,0.00034273,5]
[391903485,1760969446546,-500.0,0.00034273,5]
[391903486,1760969446556,-504.89362392,0.00034281,8]
[391903487,1760969446567,-500.0,0.00034281,7]
[391903488,1760969446577,-500.0,0.00034281,7]
[391903489,1760969446588,-500.0,0.00034281,8]
[391903490,1760969446599,-500.0,0.00034281,8]
[391903491,1760969446610,-500.0,0.00034281,8]
[391903492,1760969446619,-500.0,0.00034281,8]
[391903493,1760969446630,-500.0,0.00034281,8]
[391903494,1760969446639,-500.0,0.00034281,8]
[391903495,1760969446650,-2460.71,0.00034281,120]
[391903496,1760969446660,-150.17,0.00034292,2]
[391903497,1760969446672,-150.17,0.00034292,2]
[391903498,1760969446682,-150.17,0.00034292,2]
[391903499,1760969446694,-150.17,0.00034292,2]
[391903500,1760969446704,-150.17,0.00034292,2]
[391903501,1760969446714,-150.17,0.00034292,2]
[391903502,1760969446723,-150.17,0.00034292,2]
[391903503,1760969446733,-196.85673225,0.00034292,2]
[391903504,1760969446744,-196.85673225,0.00034292,2]
[391903505,1760969446755,-479.06,0.000343,2]
[391903506,1760969446765,-1254.76831777,0.00034301,30]
[391903507,1760969446775,-1000.0,0.00034301,2]
[391903508,1760969446785,-500.0,0.00034301,7]
[391903509,1760969446796,-500.0,0.00034301,7]
[391903510,1760969446806,-500.0,0.00034301,7]
[391903511,1760969446817,-500.0,0.00034301,7]
[391903512,1760969446827,-500.0,0.00034301,7]
[391903513,1760969446838,-500.0,0.00034301,7]
[391903514,1760969446848,-516.54232768,0.00034301,7]
[391903515,1760969446858,-500.0,0.00034301,8]
[391903516,1760969446868,-500.0,0.00034301,8]
[391903517,1760969446877,-500.0,0.00034301,8]
[391903518,1760969446887,-500.0,0.00034301,8]
[391903519,1760969446897,-500.0,0.00034301,8]
[391903520,1760969446906,-637.21145188,0.00034301,8]
[391903521,1760969446916,-500.0,0.00034301,8]
[391903522,1760969446927,-500.0,0.00034301,8]
[391903523,1760969446937,-500.0,0.00034301,8]
[391903524,1760969446946,-500.0,0.00034301,8]
[391903525,1760969446956,-500.0,0.00034301,8]
[391903526,1760969446965,-500.0,0.00034301,8]
[391903527,1760969446975,-500.0,0.00034301,8]
[391903528,1760969446985,-500.0,0.00034301,8]
[391903529,1760969446995,-500.0,0.00034301,8]
[391903530,1760969447004,-500.0,0.00034301,8]
[391903531,1760969447013,-500.0,0.00034301,8]
[391903532,1760969447023,-500.0,0.00034301,8]
[391903533,1760969447032,-500.0,0.00034301,8]
[391903534,1760969447041,-517.23,0.00034301,8]
[391903535,1760969447051,-500.0,0.00034301,8]
[391903536,1760969447063,-500.0,0.00034301,8]
[391903537,1760969447073,-500.0,0.00034301,8]
[391903538,1760969447082,-500.0,0.00034301,8]
[391903539,1760969447091,-500.0,0.00034301,8]
[391903540,1760969447101,-500.0,0.00034301,8]
[391903541,1760969447111,-500.0,0.00034301,8]
[391903542,1760969447120,-500.0,0.00034301,8]
[391903543,1760969447129,-500.0,0.00034301,8]
[391903544,1760969447139,-500.0,0.00034301,8]
[391903545,1760969447148,-500.0,0.00034301,8]
[391903546,1760969447157,-458.77,0.00034301,8]
[391903547,1760969447167,-1723.07093639,0.00034301,31]
[391903548,1760969447176,-1230.9108483,0.00034301,2]
[391903549,1760969447186,-332009.78635397,0.00034302,120]
[391903550,1760969447195,-84790.03679829,0.00034302,120]
[391903552,1760969447472,-2257.92436458,0.00034302,120]
[391903553,1760969447658,-27850.0,0.00034302,120]
[391903593,1760969787896,-204.50000016,0.00013699,2]
[391903594,1760969827242,200.0,0.00034335,59]
[391903595,1760969827899,207.4,0.00034335,30]
[391903596,1760969828553,215.0738,0.00034335,60]
[391903597,1760969829186,223.0315306,0.00034335,35]
[391903598,1760969830082,231.28369723,0.00034335,34]
[391903599,1760969830951,239.84119403,0.00034335,33]
[391903600,1760969832117,248.71531821,0.00034335,32]
[391903601,1760969832871,257.91778498,0.00034335,34]
[391903602,1760969833521,257.91778498,0.00034335,34]
[391903604,1760969945020,-106.27999984,0.00013699,2]
[391903608,1760970216553,506.04,0.00034335,30]
[391903624,1760970305755,1500.0,0.00022206,120]
[391903626,1760970366662,299.2363812,0.00034335,120]
[391903639,1760970434169,250.0,0.00034335,30]
[391903642,1760970434901,250.0,0.00034335,30]